Workbook

Sheet Elite MF_mulheres
H1: APÓS REVISÃO | R1: APÓS REVISÃO | AA1: APÓS REVISÃO | AG1: APÓS REVISÃO
A2: Equipa | B2: Nome | C2: Reps | D2: Score 19.1 Tempo final da 2ª ronda | E2: Leaderboard 19.1 | F2: Pontuação 19.1 | G2: 3º Tie-break | H2: Penalização | I2: Novo tempo | J2: Novo Leaderboard 19.1 | K2: Nova Pontuação 19.1 | M2: Tempo final da sequência 21-15-9 | N2: #reps | O2: Leaderboard 19.2 a) | P2: Pontuação 19.2 a) | Q2: 2º Tie-break | R2: Penalização | S2: Novo tempo | T2: Novo Leaderboard 19.2 a) | U2: Nova Pontuação 19.2 a) | W2: Nº pull-ups unbroken | X2: Leaderboard 19.2 b) | Y2: Pontuação 19.2 b) | Z2: Tempo final | AA2: Penalização | AB2: Novo tempo | AC2: Novo Leaderboard 19.2 b) | AD2: Nova Pontuação 19.2 b) | AE2: PONTUAÇÃO TOTAL 19.2 | AF2: LEADERBOARD 19.2 | AG2: Nova Pontuação 19.2 | AH2: Novo Leaderboard 19.2
A3: A Bela e os Monstros - Crossfit Niner | B3: Vânia Alexandra Mendes dos Santos Candeias | C3: 90 | D3: 09:52:00 | E3: 14 | F3: 62 | G3: 05:15:00 | H3: NR | I3: 09:52:00 | J3: 14 | K3: 62 | M3: 04:14:00 | N3: 90 | O3: 8 | P3: 74 | Q3: 02:45:00 | R3: NR | S3: 04:14:00 | T3: 8 | U3: 74 | W3: 21 | X3: 8 | Y3: 74 | Z3: 06:56:00 | AA3: NR | AB3: 06:56:00 | AC3: 8 | AD3: 74 | AE3: 148 | AF3: 7 | AG3: 148 | AH3: 7
A4: AKA XXI CrossFit | B4: Inês Pires Araújo Ferreira | C4: 90 | D4: 09:02:00 | E4: 12 | F4: 66 | G4: 05:35:00 | H4: NR | I4: 09:02:00 | J4: 12 | K4: 66 | M4: 08:00:00 | N4: 67 | O4: 15 | P4: 60 | Q4: 08:00:00 | R4: NR | S4: 08:00:00 | T4: 15 | U4: 60 | W4: 0 | X4: 15 | Y4: 0 | Z4: 08:00:00 | AA4: NR | AB4: 08:00:00 | AC4: 15 | AD4: 0 | AE4: 60 | AF4: 15 | AG4: 60 | AH4: 15
A5: Avo&Eggs | B5: Patrícia Esteves | C5: 90 | D5: 07:00:00 | E5: 7 | F5: 76 | G5: 04:28:00 | H5: 0 | I5: 07:00:00 | J5: 7 | K5: 76 | M5: 03:28:00 | N5: 90 | O5: 3 | P5: 90 | Q5: 02:45:00 | R5: 0 | S5: 03:28:00 | T5: 3 | U5: 90 | W5: 23 | X5: 6 | Y5: 78 | Z5: 05:26:00 | AA5: 0 | AB5: 05:26:00 | AC5: 6 | AD5: 78 | AE5: 168 | AF5: 4 | AG5: 168 | AH5: 5
A6: Beauty & The Beast | B6: Ana Elisabete Sousa Ribeiro | C6: 90 | D6: 06:58:00 | E6: 6 | F6: 78 | G6: 05:17:00 | H6: 0 | I6: 06:58:00 | J6: 6 | K6: 78 | M6: 04:23:00 | N6: 90 | O6: 9 | P6: 72 | Q6: 03:04:00 | R6: 0 | S6: 04:23:00 | T6: 9 | U6: 72 | W6: 32 | X6: 5 | Y6: 80 | Z6: 07:59:00 | AA6: 0 | AB6: 07:59:00 | AC6: 5 | AD6: 80 | AE6: 152 | AF6: 6 | AG6: 152 | AH6: 6
A7: Black broccolis | B7: Patricia Cristina Martins Simoes | C7: 90 | D7: 06:08:00 | E7: 5 | F7: 80 | G7: 03:57:00 | H7: NR | I7: 06:08:00 | J7: 5 | K7: 80 | M7: 05:14:00 | N7: 90 | O7: 11 | P7: 68 | R7: NR | S7: 05:14:00 | T7: 11 | U7: 68 | W7: 21 | X7: 9 | Y7: 72 | Z7: 07:13:00 | AA7: NR | AB7: 07:13:00 | AC7: 9 | AD7: 72 | AE7: 140 | AF7: 11 | AG7: 140 | AH7: 11
A8: Booty and the Beast | B8: Catarina de Sá Cabrinha Edmond | C8: 89 | D8: 11:00:00 | E8: 16 | F8: 59 | G8: 07:06:00 | H8: NR | I8: 11:00:00 | J8: 15 | K8: 60 | M8: 05:56:00 | N8: 90 | O8: 12 | P8: 66 | Q8: 04:09:00 | R8: NR | S8: 05:56:00 | T8: 12 | U8: 66 | W8: 12 | X8: 14 | Y8: 62 | Z8: 07:33:00 | AA8: NR | AB8: 07:33:00 | AC8: 14 | AD8: 62 | AE8: 128 | AF8: 13 | AG8: 128 | AH8: 13
A9: Box11 | B9: Ana Rita Amaro Fialho | C9: 90 | D9: 08:23:00 | E9: 10 | F9: 70 | G9: 05:03:00 | H9: NR | I9: 08:23:00 | J9: 10 | K9: 70 | M9: 08:00:00 | N9: 56 | O9: 16 | P9: 59 | Q9: 08:00:00 | R9: NR | S9: 08:00:00 | T9: 16 | U9: 59 | W9: 0 | X9: 15 | Y9: 0 | Z9: 08:00:00 | AA9: NR | AB9: 08:00:00 | AC9: 15 | AD9: 0 | AE9: 59 | AF9: 16 | AG9: 59 | AH9: 16
A10: CrossFit Açor | B10: Solange Raposo | C10: 90 | D10: 08:14:00 | E10: 9 | F10: 72 | H10: 0 | I10: 08:14:00 | J10: 9 | K10: 72 | M10: 03:54:00 | N10: 90 | O10: 6 | P10: 78 | Q10: 02:51:00 | R10: 0 | S10: 03:54:00 | T10: 6 | U10: 78 | W10: 20 | X10: 10 | Y10: 70 | Z10: 07:27:00 | AA10: 0 | AB10: 07:27:00 | AC10: 10 | AD10: 70 | AE10: 148 | AF10: 7 | AG10: 148 | AH10: 7
A11: CrossFit Alvalade Oriente | B11: Filipa Sousa Moura Abreu | C11: 90 | D11: 09:09:00 | E11: 13 | F11: 64 | G11: 05:46:00 | H11: 0 | I11: 09:09:00 | J11: 13 | K11: 64 | M11: 03:54:00 | N11: 90 | O11: 7 | P11: 76 | Q11: 03:00:00 | R11: 0 | S11: 03:55:00 | T11: 7 | U11: 76 | W11: 18 | X11: 11 | Y11: 68 | Z11: 06:37:00 | AA11: NR | AB11: 06:36:00 | AC11: 11 | AD11: 68 | AE11: 144 | AF11: 10 | AG11: 144 | AH11: 10
A12: CrossFit Feira | B12: Sara Raquel Silva Pinto | C12: 90 | D12: 05:44:00 | E12: 2 | F12: 95 | G12: 03:47:00 | H12: 0 | I12: 05:44:00 | J12: 2 | K12: 95 | M12: 02:31:00 | N12: 90 | O12: 2 | P12: 95 | Q12: 01:54:00 | R12: 0 | S12: 02:31:00 | T12: 2 | U12: 95 | W12: 40 | X12: 3 | Y12: 90 | Z12: 07:34:00 | AA12: 0 | AB12: 07:34:00 | AC12: 3 | AD12: 90 | AE12: 185 | AF12: 2 | AG12: 185 | AH12: 2
A13: Crosslift Algarve | B13: Luana Galo Oliveira | E13: 17 | F13: 0 | J13: 17 | K13: 0 | O13: 17 | P13: 0 | X13: 15 | Y13: 0 | AC13: 15 | AD13: 0 | AE13: 0 | AF13: 17 | AG13: 0 | AH13: 17
A14: Madness Division | B14: Mafalda Peraboa Baptista | C14: 90 | D14: 07:57:00 | E14: 8 | F14: 74 | G14: 05:07:00 | H14: 0 | I14: 07:57:00 | J14: 8 | K14: 74 | M14: 03:41:00 | N14: 90 | O14: 4 | P14: 85 | Q14: 02:46:00 | R14: Não mediu os 90cm (10'') | S14: 03:51:00 | T14: 5 | U14: 80 | W14: 46 | X14: 1 | Y14: 100 | Z14: 06:58:00 | AA14: 0 | AB14: 06:58:00 | AC14: 1 | AD14: 100 | AE14: 185 | AF14: 2 | AG14: 180 | AH14: 3
A15: NoPainNewGeneration | B15: Bruna Rita Lima Martins Rodrigues | C15: 89 | D15: 11:00:00 | E15: 15 | F15: 60 | G15: 06:57:00 | H15: 4 no-reps slamball (4*3''):12'' | I15: 11:12:00 | J15: 16 | K15: 59 | M15: 06:05:00 | N15: 90 | O15: 13 | P15: 64 | R15: 1 no-rep HSPU (2'') | S15: 06:07:00 | T15: 13 | U15: 64 | W15: 15 | X15: 12 | Y15: 66 | Z15: 07:53:00 | AA15: 0 | AB15: 07:49:00 | AC15: 12 | AD15: 66 | AE15: 130 | AF15: 12 | AG15: 130 | AH15: 12
A16: Noroestestamina1 | B16: Patricia veloso dinis | C16: 90 | D16: 05:06:00 | E16: 1 | F16: 100 | G16: 03:27:00 | H16: 0 | I16: 05:06:00 | J16: 1 | K16: 100 | M16: 03:47:00 | N16: 90 | O16: 5 | P16: 80 | Q16: 02:45:00 | R16: 0 | S16: 03:47:00 | T16: 4 | U16: 85 | W16: 35 | X16: 4 | Y16: 85 | AA16: 0 | AB16: 07:20:00 | AC16: 4 | AD16: 85 | AE16: 165 | AF16: 5 | AG16: 170 | AH16: 4
A17: NORTADA - THE ORIGINALS | B17: Maria Manuel Gonçalves dos Santos Leite | E17: 17 | F17: 0 | J17: 17 | K17: 0 | O17: 17 | P17: 0 | X17: 15 | Y17: 0 | AC17: 15 | AD17: 0 | AE17: 0 | AF17: 17 | AG17: 0 | AH17: 17
A18: Party Animals | B18: Sónia Sofia Branco Timóteo | C18: 90 | D18: 06:01:00 | E18: 4 | F18: 85 | G18: 04:05:00 | H18: NR | I18: 06:01:00 | J18: 4 | K18: 85 | M18: 07:31:00 | N18: 90 | O18: 14 | P18: 62 | Q18: 05:15:00 | R18: NR | S18: 07:31:00 | T18: 14 | U18: 62 | W18: 13 | X18: 13 | Y18: 64 | Z18: 08:00:00 | AA18: NR | AB18: 08:00:00 | AC18: 13 | AD18: 64 | AE18: 126 | AF18: 14 | AG18: 126 | AH18: 14
A19: Soul Team | B19: Sónia Lima Cancela | E19: 17 | F19: 0 | J19: 17 | K19: 0 | O19: 17 | P19: 0 | X19: 15 | Y19: 0 | AC19: 15 | AD19: 0 | AE19: 0 | AF19: 17 | AG19: 0 | AH19: 17
A20: Team Wanderlust | B20: Andreia Susana de Oliveira Barbosa | C20: 90 | D20: 08:26:00 | E20: 11 | F20: 68 | G20: 04:36:00 | H20: NR | I20: 08:26:00 | J20: 11 | K20: 68 | M20: 04:25:00 | N20: 90 | O20: 10 | P20: 70 | Q20: 03:22:00 | R20: NR | S20: 04:25:00 | T20: 10 | U20: 70 | W20: 23 | X20: 7 | Y20: 76 | Z20: 07:50:00 | AA20: 0 | AB20: 07:50:00 | AC20: 7 | AD20: 76 | AE20: 146 | AF20: 9 | AG20: 146 | AH20: 9
A21: Team Wanderlust | B21: Catarina Raquel Correia Lopes | C21: 90 | D21: 05:49:00 | E21: 3 | F21: 90 | G21: 03:40:00 | H21: 0 | I21: 05:49:00 | J21: 3 | K21: 90 | M21: 02:13:00 | N21: 90 | O21: 1 | P21: 100 | Q21: 01:41:00 | R21: 0 | S21: 02:13:00 | T21: 1 | U21: 100 | W21: 42 | X21: 2 | Y21: 95 | Z21: 07:02:00 | AA21: 0 | AB21: 07:02:00 | AC21: 2 | AD21: 95 | AE21: 195 | AF21: 1 | AG21: 195 | AH21: 1

Sheet Elite MF_homens
H1: APÓS REVISÃO
A2: Equipa | B2: Nome | C2: Reps | D2: Score 19.1 Tempo final da 2ª ronda | E2: Leaderboard 19.1 | F2: Pontuação 19.1 | G2: 3º Tie-break | H2: Penalização | I2: Novo tempo | J2: Novas reps | K2: Novo Leaderboard 19.1 | L2: Nova Pontuação 19.1 | N2: Tempo final da sequência 21-15-9 | O2: #reps | P2: Leaderboard 19.2 a) | Q2: Pontuação 19.2 a) | R2: 1º Tie-break | S2: 2º Tie-break | T2: Penalização | U2: Novo tempo | V2: Novas reps | W2: Novo Leaderboard 19.2 a) | X2: Nova Pontuação 19.2 a) | Z2: Nº pull-ups unbroken | AA2: Tempo final | AB2: Leaderboard 19.2 b) | AC2: Pontuação 19.2 b) | AD2: Penalização | AE2: PONTUAÇÃO TOTAL 19.2 | AF2: LEADERBOARD 19.2 | AG2: Nova Pontuação 19.2 | AH2: Novo Leaderboard 19.2
A3: A Bela e os Monstros - Crossfit Niner | B3: Norberto jorge pacheco sequeira | C3: 90 | D3: 06:13:00 | E3: 13 | F3: 64 | G3: 04:02:00 | H3: NR | I3: 06:13:00 | J3: 90 | K3: 12 | L3: 66 | N3: 07:12:00 | O3: 90 | P3: 12 | Q3: 66 | R3: 02:18:00 | S3: 05:12:00 | T3: 0 | U3: 07:12:00 | V3: 90 | W3: 9 | X3: 72 | Z3: 25 | AA3: 08:00:00 | AB3: 11 | AC3: 68 | AD3: 0 | AE3: 132 | AF3: 12 | AG3: =X3+AC3 -> 140 | AH3: 10
A4: A Bela e os Monstros - Crossfit Niner | B4: Pedro Miguel Braz Alexandre | C4: 90 | D4: 05:57:00 | E4: 12 | F4: 66 | G4: 03:43:00 | H4: NR | I4: 05:57:00 | J4: 90 | K4: 11 | L4: 68 | N4: 08:00:00 | P4: 17 | Q4: 58 | R4: 03:51:00 | S4: 08:00:00 | T4: NR | U4: 08:00:00 | W4: 17 | X4: 58 | Z4: 0 | AA4: 08:00:00 | AB4: 12 | AC4: 0 | AD4: NR | AE4: 58 | AF4: 17 | AG4: =X4+AC4 -> 58 | AH4: 17
A5: AKA XXI CrossFit | B5: João Augusto Barreiros Pereira | C5: 90 | D5: 06:14:00 | E5: 14 | F5: 62 | G5: 03:57:00 | H5: NR | I5: 06:14:00 | J5: 90 | K5: 13 | L5: 64 | N5: 08:00:00 | O5: 87 | P5: 13 | Q5: 64 | R5: 03:03:00 | S5: 06:13:00 | T5: NR | U5: 08:00:00 | V5: 87 | W5: 11 | X5: 68 | Z5: 0 | AA5: 08:00:00 | AB5: 12 | AC5: 0 | AD5: NR | AE5: 64 | AF5: 13 | AG5: =X5+AC5 -> 68 | AH5: 12
A6: AKA XXI CrossFit | B6: Paulo Ricardo Braz Antunes | C6: 90 | D6: 08:13:00 | E6: 17 | F6: 58 | G6: 04:39:00 | H6: NR | I6: 08:13:00 | J6: 90 | K6: 16 | L6: 59 | N6: 08:00:00 | O6: 34 | P6: 18 | Q6: 57 | R6: 08:00:00 | T6: NR | U6: 08:00:00 | V6: 34 | W6: 18 | X6: 57 | Z6: 0 | AA6: 08:00:00 | AB6: 12 | AC6: 0 | AD6: NR | AE6: 57 | AF6: 18 | AG6: =X6+AC6 -> 57 | AH6: 18
A7: Avo&Eggs | B7: Tiago Silva | C7: 90 | D7: 08:49:00 | E7: 18 | F7: 57 | G7: 05:40:00 | H7: 0 | I7: 08:49:00 | J7: 90 | K7: 17 | L7: 58 | N7: 07:11:00 | O7: 90 | P7: 11 | Q7: 68 | R7: 02:58:00 | S7: 05:35:00 | T7: 2 no-reps HSPU (2*2''):4'' | U7: 07:15:00 | V7: 90 | W7: 10 | X7: 70 | Z7: 28 | AA7: 08:00:00 | AB7: 10 | AC7: 70 | AD7: 0 | AE7: 136 | AF7: 11 | AG7: =X7+AC7 -> 140 | AH7: 10
A8: Beauty & The Beast | B8: João Duarte Leite Teixeira | C8: 90 | D8: 05:54:00 | E8: 11 | F8: 68 | G8: 04:15:00 | H8: 0 | I8: 05:54:00 | J8: 90 | K8: 10 | L8: 70 | N8: 06:58:00 | O8: 90 | P8: 9 | Q8: 72 | R8: 02:33:00 | S8: 05:35:00 | T8: 0 | U8: 06:58:00 | V8: 90 | W8: 7 | X8: 76 | Z8: 50 | AA8: 07:59:00 | AB8: 1 | AC8: 100 | AD8: 0 | AE8: 172 | AF8: 3 | AG8: =X8+AC8 -> 176 | AH8: 2
A9: Black broccolis | B9: Diogo Miguel Oliveira Coelho | C9: 90 | D9: 04:58:00 | E9: 4 | F9: 85 | G9: 03:36:00 | H9: NR | I9: 04:58:00 | J9: 90 | K9: 4 | L9: 85 | N9: 08:00:00 | O9: 84 | P9: 14 | Q9: 62 | R9: 01:58:00 | S9: 06:07:00 | T9: NR | U9: 08:00:00 | V9: 84 | W9: 13 | X9: 64 | Z9: 0 | AB9: 12 | AC9: 0 | AD9: NR | AE9: 62 | AF9: 14 | AG9: =X9+AC9 -> 64 | AH9: 14
A10: Booty and the Beast | B10: José Rafael Bernardo de Almeida Nunes Silvestre | C10: 90 | D10: 04:45:00 | E10: 3 | F10: 90 | G10: 03:13:00 | H10: NR | I10: 04:45:00 | J10: 90 | K10: 2 | L10: 95 | N10: 06:44:00 | O10: 90 | P10: 8 | Q10: 74 | R10: 02:08:00 | S10: 04:58:00 | T10: NR | U10: 06:44:00 | V10: 90 | W10: 6 | X10: 78 | Z10: 40 | AA10: 07:59:00 | AB10: 8 | AC10: 74 | AD10: NR | AE10: 148 | AF10: 9 | AG10: =X10+AC10 -> 152 | AH10: 7
A11: Box11 | B11: Rui Pedro dos Santos Óscar Pinto | C11: 90 | D11: 06:35:00 | E11: 16 | F11: 59 | G11: 04:34:00 | H11: NR | I11: 06:35:00 | J11: 90 | K11: 15 | L11: 60 | N11: 08:00:00 | O11: 83 | P11: 15 | Q11: 60 | R11: 02:40:00 | S11: 06:32:00 | T11: NR | U11: 08:00:00 | V11: 83 | W11: 14 | X11: 62 | Z11: 0 | AA11: 08:00:00 | AB11: 12 | AC11: 0 | AD11: NR | AE11: 60 | AF11: 15 | AG11: =X11+AC11 -> 62 | AH11: 15
A12: Crossfit Açor | B12: Paulo barbosa | C12: 90 | D12: 06:14:00 | E12: 15 | F12: 60 | G12: 04:00:00 | H12: 0 | I12: 06:14:00 | J12: 90 | K12: 14 | L12: 62 | N12: 03:41:00 | O12: 90 | P12: 3 | Q12: 90 | T12: 0 | U12: 03:41:00 | V12: 90 | W12: 2 | X12: 95 | Z12: 45 | AA12: 07:27:00 | AB12: 5 | AC12: 80 | AD12: 0 | AE12: 170 | AF12: 5 | AG12: =X12+AC12 -> 175 | AH12: 4
A13: Crossfit Alvalade Oriente | B13: Daniel Alexandre Costa Rodrigues | C13: 90 | D13: 05:48:00 | E13: 8 | F13: 74 | G13: 04:01:00 | H13: vídeo acaba antes do fim do WOD | I13: 05:10:00 | J13: 82 | K13: 18 | L13: 57 | N13: 05:09:00 | O13: 90 | P13: 5 | Q13: 80 | R13: 01:49:00 | S13: 03:50:00 | T13: vídeo acaba antes do fim do WOD | U13: 04:45:00 | V13: 85 | W13: 12 | X13: 66 | Z13: 0 | AA13: 07:36:00 | AB13: 12 | AC13: 0 | AD13: NR | AE13: 152 | AF13: 8 | AG13: =X13+AC13 -> 66 | AH13: 13
A14: Crossfit Feira | B14: Daniel Patrício Pereira Sarabanda | C14: 90 | D14: 05:42:00 | E14: 7 | F14: 76 | G14: 04:10:00 | H14: 0 | I14: 05:42:00 | J14: 90 | K14: 7 | L14: 76 | N14: 04:02:00 | O14: 90 | P14: 4 | Q14: 85 | R14: 01:21:00 | S14: 02:58:00 | T14: 0 | U14: 04:02:00 | V14: 90 | W14: 3 | X14: 90 | Z14: 43 | AA14: 07:47:00 | AB14: 6 | AC14: 78 | AD14: 0 | AE14: 163 | AF14: 7 | AG14: =X14+AC14 -> 168 | AH14: 6
A15: CrossFit Feira | B15: José Diogo Chin Correia Pinto | C15: 90 | D15: 05:54:00 | E15: 10 | F15: 70 | G15: 04:07:00 | H15: NR | I15: 05:54:00 | J15: 90 | K15: 9 | L15: 72 | N15: 06:59:00 | O15: 90 | P15: 10 | Q15: 70 | T15: NR | U15: 06:59:00 | V15: 90 | W15: 8 | X15: 74 | Z15: 37 | AB15: 9 | AC15: 72 | AD15: 0 | AE15: 140 | AF15: 10 | AG15: =X15+AC15 -> 146 | AH15: 8
A16: Crosslift Algarve | B16: Pedro Afonso | E16: 19 | F16: 0 | K16: 19 | L16: 0 | P16: 19 | Q16: 0 | W16: 19 | X16: 0 | AB16: 12 | AC16: 0 | AE16: 0 | AF16: 19 | AG16: =X16+AC16 -> 0 | AH16: 19
A17: Madness Division | B17: Bernardo Filipe Diegues Ferreira Santos | C17: 90 | D17: 04:17:00 | E17: 1 | F17: 100 | G17: 02:55:00 | H17: 0 | I17: 04:17:00 | J17: 90 | K17: 1 | L17: 100 | N17: 03:00:00 | O17: 90 | P17: 2 | Q17: 95 | R17: 01:13:00 | S17: 02:11:00 | T17: Não mostra medidas das HSPU (10'') + 7 no-reps DL (7*1''):7''; total 17'' | U17: 03:17:00 | V17: 90 | W17: 1 | X17: 100 | Z17: 40 | AA17: 07:19:00 | AB17: 7 | AC17: 76 | AD17: 0 | AE17: 171 | AF17: 4 | AG17: =X17+AC17 -> 176 | AH17: 2
A18: NoPainNewGeneration | B18: Ricardo Samuel Moreira Da Costa | C18: 90 | D18: 04:24:00 | E18: 2 | F18: 95 | H18: 10 no-reps slamball (10*3''): 30'' | I18: 04:54:00 | J18: 90 | K18: 3 | L18: 90 | N18: 06:15:00 | O18: 90 | P18: 6 | Q18: 78 | T18: 0 | U18: 06:13:00 | V18: 90 | W18: 4 | X18: 85 | Z18: 50 | AA18: 08:00:00 | AB18: 2 | AC18: 95 | AD18: 0 | AE18: 173 | AF18: 2 | AG18: =X18+AC18 -> 180 | AH18: 1
A19: Noroestestamina1 | B19: Andre filipe nunes pereira azevedo | E19: 19 | F19: 0 | K19: 19 | L19: 0 | N19: 02:17:00 | O19: 90 | P19: 1 | Q19: 100 | T19: não conta nenhuma HSPU - standard não cumprido - 45 reps | U19: 02:17:00 | V19: 45 | W19: 16 | X19: 59 | Z19: 45 | AA19: 07:25:00 | AB19: 4 | AC19: 85 | AD19: 0 | AE19: 185 | AF19: 1 | AG19: =X19+AC19 -> 144 | AH19: 9
A20: Noroestestamina1 | B20: Rui pedro oliveira soares | C20: 90 | D20: 05:19:00 | E20: 5 | F20: 80 | H20: 0 | I20: 05:23:00 | J20: 90 | K20: 5 | L20: 80 | P20: 19 | Q20: 0 | R20: -- | S20: -- | W20: 19 | X20: 0 | AB20: 12 | AC20: 0 | AE20: 0 | AF20: 19 | AG20: =X20+AC20 -> 0 | AH20: 19
A21: NORTADA - THE ORIGINALS | B21: Diogo Santos Serra | E21: 19 | F21: 0 | K21: 19 | L21: 0 | P21: 19 | Q21: 0 | W21: 19 | X21: 0 | AB21: 12 | AC21: 0 | AE21: 0 | AF21: 19 | AG21: =X21+AC21 -> 0 | AH21: 19
A22: Party Animals | B22: Ivo Ervalho Santos | C22: 90 | D22: 05:50:00 | E22: 9 | F22: 72 | G22: 03:44:00 | H22: NR | I22: 05:50:00 | J22: 90 | K22: 8 | L22: 74 | N22: 08:00:00 | O22: 81 | P22: 16 | Q22: 59 | R22: 02:36:00 | S22: 07:43:00 | T22: NR | U22: 08:00:00 | V22: 81 | W22: 15 | X22: 60 | Z22: 0 | AA22: 08:00:00 | AB22: 12 | AC22: 0 | AD22: NR | AE22: 59 | AF22: 16 | AG22: =X22+AC22 -> 60 | AH22: 16
A23: Soul Team | B23: Rogerio Castanho | E23: 19 | F23: 0 | K23: 19 | L23: 0 | P23: 19 | Q23: 0 | W23: 19 | X23: 0 | AB23: 12 | AC23: 0 | AE23: 0 | AF23: 19 | AG23: =X23+AC23 -> 0 | AH23: 19
A24: Team Wanderlust | B24: Luis Miguel Sa Marques Bastardo | C24: 90 | D24: 05:29:00 | E24: 6 | F24: 78 | G24: 03:41:00 | H24: 0 | I24: 05:29:00 | J24: 90 | K24: 6 | L24: 78 | N24: 06:17:00 | O24: 90 | P24: 7 | Q24: 76 | R24: 01:54:00 | S24: 04:17:00 | T24: 0 | U24: 06:17:00 | V24: 90 | W24: 5 | X24: 80 | Z24: 48 | AA24: 07:59:00 | AB24: 3 | AC24: 90 | AD24: 0 | AE24: 166 | AF24: 6 | AG24: =X24+AC24 -> 170 | AH24: 5

Sheet Elite MF_19.1
A1: Equipa | B1: Nome | C1: Leaderboard 19.1 | D1: Pontuação 19.1 | E1: Score dupla 19.1 | F1: Novo Leaderboard 19.1 | G1: Nova Pontuação 19.1 | H1: Novo score dupla 19.1
A2: A Bela e os Monstros - Crossfit Niner | B2: Norberto jorge pacheco sequeira | C2: 13 | D2: 64 | F2: 12 | G2: 66
A3: A Bela e os Monstros - Crossfit Niner | B3: Pedro Miguel Braz Alexandre | C3: 12 | D3: 66 | E3: 128 | F3: 11 | G3: 68 | H3: 130 | J3: Legenda:
A4: A Bela e os Monstros - Crossfit Niner | B4: Vânia Alexandra Mendes dos Santos Candeias | C4: 14 | D4: 62 | F4: 14 | G4: 62 | K4: score do atleta não contabilizado (para duplas com 3 elementos)
A5: AKA XXI CrossFit | B5: Inês Pires Araújo Ferreira | C5: 12 | D5: 66 | E5: 128 | F5: 12 | G5: 66 | H5: 130
A6: AKA XXI CrossFit | B6: João Augusto Barreiros Pereira | C6: 14 | D6: 62 | F6: 13 | G6: 64
A7: AKA XXI CrossFit | B7: Paulo Ricardo Braz Antunes | C7: 17 | D7: 58 | F7: 16 | G7: 59
A8: Avo&Eggs | B8: Patrícia Esteves | C8: 7 | D8: 76 | E8: 133 | F8: 7 | G8: 76 | H8: 134
A9: Avo&Eggs | B9: Tiago Silva | C9: 18 | D9: 57 | F9: 17 | G9: 58
A10: Beauty & The Beast | B10: Ana Elisabete Sousa Ribeiro | C10: 6 | D10: 78 | E10: 146 | F10: 6 | G10: 78 | H10: 148
A11: Beauty & The Beast | B11: João Duarte Leite Teixeira | C11: 11 | D11: 68 | F11: 10 | G11: 70
A12: Black broccolis | B12: Diogo Miguel Oliveira Coelho | C12: 4 | D12: 85 | E12: 165 | F12: 4 | G12: 85 | H12: 165
A13: Black broccolis | B13: Patricia Cristina Martins Simoes | C13: 5 | D13: 80 | F13: 5 | G13: 80
A14: Booty and the Beast | B14: Catarina de Sá Cabrinha Edmond | C14: 16 | D14: 59 | E14: 149 | F14: 15 | G14: 60 | H14: 155
A15: Booty and the Beast | B15: José Rafael Bernardo de Almeida Nunes Silvestre | C15: 3 | D15: 90 | F15: 2 | G15: 95
A16: Box11 | B16: Ana Rita Amaro Fialho | C16: 10 | D16: 70 | E16: 129 | F16: 10 | G16: 70 | H16: 130
A17: Box11 | B17: Rui Pedro dos Santos Óscar Pinto | C17: 16 | D17: 59 | F17: 15 | G17: 60
A18: Crossfit Açor | B18: Paulo barbosa | C18: 15 | D18: 60 | E18: 132 | F18: 14 | G18: 62 | H18: 134
A19: CrossFit Açor | B19: Solange Raposo | C19: 9 | D19: 72 | F19: 9 | G19: 72
A20: Crossfit Alvalade Oriente | B20: Daniel Alexandre Costa Rodrigues | C20: 8 | D20: 74 | E20: 138 | F20: 18 | G20: 57 | H20: 121
A21: CrossFit Alvalade Oriente | B21: Filipa Sousa Moura Abreu | C21: 13 | D21: 64 | F21: 13 | G21: 64
A22: Crossfit Feira | B22: Daniel Patrício Pereira Sarabanda | C22: 7 | D22: 76 | E22: 171 | F22: 7 | G22: 76 | H22: 171
A23: CrossFit Feira | B23: José Diogo Chin Correia Pinto | C23: 10 | D23: 70 | F23: 9 | G23: 72
A24: CrossFit Feira | B24: Sara Raquel Silva Pinto | C24: 2 | D24: 95 | F24: 2 | G24: 95
A25: Crosslift Algarve | B25: Luana Galo Oliveira | C25: 17 | D25: 0 | E25: 0 | F25: 17 | G25: 0 | H25: 0
A26: Crosslift Algarve | B26: Pedro Afonso | C26: 19 | D26: 0 | F26: 19 | G26: 0
A27: Madness Division | B27: Bernardo Filipe Diegues Ferreira Santos | C27: 1 | D27: 100 | E27: 174 | F27: 1 | G27: 100 | H27: 174
A28: Madness Division | B28: Mafalda Peraboa Baptista | C28: 8 | D28: 74 | F28: 8 | G28: 74
A29: NoPainNewGeneration | B29: Bruna Rita Lima Martins Rodrigues | C29: 15 | D29: 60 | E29: 155 | F29: 16 | G29: 59 | H29: 149
A30: NoPainNewGeneration | B30: Ricardo Samuel Moreira Da Costa | C30: 2 | D30: 95 | F30: 3 | G30: 90
A31: Noroestestamina1 | B31: Andre filipe nunes pereira azevedo | C31: 19 | D31: 0 | F31: 19 | G31: 0
A32: Noroestestamina1 | B32: Patricia veloso dinis | C32: 1 | D32: 100 | E32: 180 | F32: 1 | G32: 100 | H32: 180
A33: Noroestestamina1 | B33: Rui pedro oliveira soares | C33: 5 | D33: 80 | F33: 5 | G33: 80
A34: NORTADA - THE ORIGINALS | B34: Diogo Santos Serra | C34: 19 | D34: 0 | E34: 0 | F34: 19 | G34: 0 | H34: 0
A35: NORTADA - THE ORIGINALS | B35: Maria Manuel Gonçalves dos Santos Leite | C35: 17 | D35: 0 | F35: 17 | G35: 0
A36: Party Animals | B36: Ivo Ervalho Santos | C36: 9 | D36: 72 | E36: 157 | F36: 8 | G36: 74 | H36: 159
A37: Party Animals | B37: Sónia Sofia Branco Timóteo | C37: 4 | D37: 85 | F37: 4 | G37: 85
A38: Soul Team | B38: Rogerio Castanho | C38: 19 | D38: 0 | E38: 0 | F38: 19 | G38: 0 | H38: 0
A39: Soul Team | B39: Sónia Lima Cancela | C39: 17 | D39: 0 | F39: 17 | G39: 0
A40: Team Wanderlust | B40: Andreia Susana de Oliveira Barbosa | C40: 11 | D40: 68 | F40: 11 | G40: 68
A41: Team Wanderlust | B41: Catarina Raquel Correia Lopes | C41: 3 | D41: 90 | E41: 168 | F41: 3 | G41: 90 | H41: 168
A42: Team Wanderlust | B42: Luis Miguel Sa Marques Bastardo | C42: 6 | D42: 78 | F42: 6 | G42: 78

Sheet Elite MF_19.2
A1: Equipa | B1: Nome | C1: PONTUAÇÃO TOTAL 19.2 | D1: LEADERBOARD 19.2 | E1: Score dupla 19.2 | F1: Nova Pontuação 19.2 | G1: Novo Leaderboard 19.2 | H1: Novo score dupla 19.2
A2: A Bela e os Monstros - Crossfit Niner | B2: Norberto jorge pacheco sequeira | C2: 132 | D2: 12 | E2: 280 | F2: 140 | G2: 10 | H2: 288
A3: A Bela e os Monstros - Crossfit Niner | B3: Pedro Miguel Braz Alexandre | C3: 58 | D3: 17 | F3: 58 | G3: 17 | J3: Legenda:
A4: A Bela e os Monstros - Crossfit Niner | B4: Vânia Alexandra Mendes dos Santos Candeias | C4: 148 | D4: 7 | F4: 148 | G4: 7 | K4: score do atleta não contabilizado (para duplas com 3 elementos)
A5: AKA XXI CrossFit | B5: Inês Pires Araújo Ferreira | C5: 60 | D5: 15 | E5: 124 | F5: 60 | G5: 15 | H5: 128
A6: AKA XXI CrossFit | B6: João Augusto Barreiros Pereira | C6: 64 | D6: 13 | F6: 68 | G6: 12
A7: AKA XXI CrossFit | B7: Paulo Ricardo Braz Antunes | C7: 57 | D7: 18 | F7: 57 | G7: 18
A8: Avo&Eggs | B8: Patrícia Esteves | C8: 168 | D8: 4 | E8: 304 | F8: 168 | G8: 5 | H8: 308
A9: Avo&Eggs | B9: Tiago Silva | C9: 136 | D9: 11 | F9: 140 | G9: 10
A10: Beauty & The Beast | B10: Ana Elisabete Sousa Ribeiro | C10: 152 | D10: 6 | E10: 324 | F10: 152 | G10: 6 | H10: 328
A11: Beauty & The Beast | B11: João Duarte Leite Teixeira | C11: 172 | D11: 3 | F11: 176 | G11: 2
A12: Black broccolis | B12: Diogo Miguel Oliveira Coelho | C12: 62 | D12: 14 | E12: 202 | F12: 64 | G12: 14 | H12: 204
A13: Black broccolis | B13: Patricia Cristina Martins Simoes | C13: 140 | D13: 11 | F13: 140 | G13: 11
A14: Booty and the Beast | B14: Catarina de Sá Cabrinha Edmond | C14: 128 | D14: 13 | E14: 276 | F14: 128 | G14: 13 | H14: 280
A15: Booty and the Beast | B15: José Rafael Bernardo de Almeida Nunes Silvestre | C15: 148 | D15: 9 | F15: 152 | G15: 7
A16: Box11 | B16: Ana Rita Amaro Fialho | C16: 59 | D16: 16 | E16: 119 | F16: 59 | G16: 16 | H16: 121
A17: Box11 | B17: Rui Pedro dos Santos Óscar Pinto | C17: 60 | D17: 15 | F17: 62 | G17: 15
A18: Crossfit Açor | B18: Paulo barbosa | C18: 170 | D18: 5 | E18: 318 | F18: 175 | G18: 4 | H18: 323
A19: CrossFit Açor | B19: Solange Raposo | C19: 148 | D19: 7 | F19: 148 | G19: 7
A20: Crossfit Alvalade Oriente | B20: Daniel Alexandre Costa Rodrigues | C20: 152 | D20: 8 | E20: 296 | F20: 66 | G20: 13 | H20: 210
A21: CrossFit Alvalade Oriente | B21: Filipa Sousa Moura Abreu | C21: 144 | D21: 10 | F21: 144 | G21: 10
A22: Crossfit Feira | B22: Daniel Patrício Pereira Sarabanda | C22: 163 | D22: 7 | E22: 348 | F22: 168 | G22: 6 | H22: 353
A23: CrossFit Feira | B23: José Diogo Chin Correia Pinto | C23: 140 | D23: 10 | F23: 146 | G23: 8
A24: CrossFit Feira | B24: Sara Raquel Silva Pinto | C24: 185 | D24: 2 | F24: 185 | G24: 2
A25: Crosslift Algarve | B25: Luana Galo Oliveira | C25: 0 | D25: 17 | E25: 0 | F25: 0 | G25: 17 | H25: 0
A26: Crosslift Algarve | B26: Pedro Afonso | C26: 0 | D26: 19 | F26: 0 | G26: 19
A27: Madness Division | B27: Bernardo Filipe Diegues Ferreira Santos | C27: 171 | D27: 4 | E27: 356 | F27: 176 | G27: 2 | H27: 356
A28: Madness Division | B28: Mafalda Peraboa Baptista | C28: 185 | D28: 2 | F28: 180 | G28: 3
A29: NoPainNewGeneration | B29: Bruna Rita Lima Martins Rodrigues | C29: 130 | D29: 12 | E29: 303 | F29: 130 | G29: 12 | H29: 310
A30: NoPainNewGeneration | B30: Ricardo Samuel Moreira Da Costa | C30: 173 | D30: 2 | F30: 180 | G30: 1
A31: Noroestestamina1 | B31: Andre filipe nunes pereira azevedo | C31: 185 | D31: 1 | E31: 350 | F31: 144 | G31: 9 | H31: 314
A32: Noroestestamina1 | B32: Patricia veloso dinis | C32: 165 | D32: 5 | F32: 170 | G32: 4
A33: Noroestestamina1 | B33: Rui pedro oliveira soares | C33: 0 | D33: 19 | F33: 0 | G33: 19
A34: NORTADA - THE ORIGINALS | B34: Diogo Santos Serra | C34: 0 | D34: 19 | E34: 0 | F34: 0 | G34: 19 | H34: 0
A35: NORTADA - THE ORIGINALS | B35: Maria Manuel Gonçalves dos Santos Leite | C35: 0 | D35: 17 | F35: 0 | G35: 17
A36: Party Animals | B36: Ivo Ervalho Santos | C36: 59 | D36: 16 | E36: 185 | F36: 60 | G36: 16 | H36: 186
A37: Party Animals | B37: Sónia Sofia Branco Timóteo | C37: 126 | D37: 14 | F37: 126 | G37: 14
A38: Soul Team | B38: Rogerio Castanho | C38: 0 | D38: 19 | E38: 0 | F38: 0 | G38: 19 | H38: 0
A39: Soul Team | B39: Sónia Lima Cancela | C39: 0 | D39: 17 | F39: 0 | G39: 17
A40: Team Wanderlust | B40: Andreia Susana de Oliveira Barbosa | C40: 146 | D40: 9 | F40: 146 | G40: 9
A41: Team Wanderlust | B41: Catarina Raquel Correia Lopes | C41: 195 | D41: 1 | E41: 361 | F41: 195 | G41: 1 | H41: 365
A42: Team Wanderlust | B42: Luis Miguel Sa Marques Bastardo | C42: 166 | D42: 6 | F42: 170 | G42: 5

Sheet LEADERBOARD FINAL ELITE FF
C1: Dupla | D1: Categoria | E1: Score 19.1 | F1: Score 19.2 | G1: Score Total | H1: Leaderboard final | I1: Novo score 19.1 | J1: Novo score 19.2 | K1: Novo Score total | L1: Novo Leaderboard final
C2: Team Wanderlust | D2: Elite MF | E2: 168 | F2: 361 | G2: =E2+F2 -> 529 | H2: 3 | I2: 168 | J2: 365 | K2: 533 | L2: 1
C3: Madness Division | D3: Elite MF | E3: 174 | F3: 356 | G3: =E3+F3 -> 530 | H3: 1 | I3: 174 | J3: 356 | K3: 530 | L3: 2 | N3: Legenda:
C4: CrossFit Feira | D4: Elite MF | E4: 171 | F4: 348 | G4: =E4+F4 -> 519 | H4: 4 | I4: 171 | J4: 353 | K4: 524 | L4: 3 | O4: duplas não qualificadas
C5: Noroestestamina1 | D5: Elite MF | E5: 180 | F5: 350 | G5: =E5+F5 -> 530 | H5: 1 | I5: 180 | J5: 314 | K5: 494 | L5: 4
C6: Beauty & The Beast | D6: Elite MF | E6: 146 | F6: 324 | G6: =E6+F6 -> 470 | H6: 5 | I6: 148 | J6: 328 | K6: 476 | L6: 5
C7: NoPainNewGeneration | D7: Elite MF | E7: 155 | F7: 303 | G7: =E7+F7 -> 458 | H7: 6 | I7: 149 | J7: 310 | K7: 459 | L7: 6
C8: CrossFit Açor | D8: Elite MF | E8: 132 | F8: 318 | G8: =E8+F8 -> 450 | H8: 7 | I8: 134 | J8: 323 | K8: 457 | L8: 7
C9: Avo&Eggs | D9: Elite MF | E9: 133 | F9: 304 | G9: =E9+F9 -> 437 | H9: 8 | I9: 134 | J9: 308 | K9: 442 | L9: 8
C10: Booty and the Beast | D10: Elite MF | E10: 149 | F10: 276 | G10: =E10+F10 -> 425 | H10: 10 | I10: 155 | J10: 280 | K10: 435 | L10: 9
C11: A Bela e os Monstros - Crossfit Niner | D11: Elite MF | E11: 128 | F11: 280 | G11: =E11+F11 -> 408 | H11: 11 | I11: 130 | J11: 288 | K11: 418 | L11: 10
C12: Black broccolis | D12: Elite MF | E12: 165 | F12: 202 | G12: =E12+F12 -> 367 | H12: 12 | I12: 165 | J12: 204 | K12: 369 | L12: 11
C13: Party Animals | D13: Elite MF | E13: 157 | F13: 185 | G13: =E13+F13 -> 342 | H13: 13 | I13: 159 | J13: 186 | K13: 345 | L13: 12
C14: CrossFit Alvalade Oriente | D14: Elite MF | E14: 138 | F14: 296 | G14: =E14+F14 -> 434 | H14: 9 | I14: 121 | J14: 210 | K14: 331 | L14: 13
C15: AKA XXI CrossFit | D15: Elite MF | E15: 128 | F15: 124 | G15: =E15+F15 -> 252 | H15: 14 | I15: 130 | J15: 128 | K15: 258 | L15: 14
C16: Box11 | D16: Elite MF | E16: 129 | F16: 119 | G16: =E16+F16 -> 248 | H16: 15 | I16: 130 | J16: 121 | K16: 251 | L16: 15
C17: Crosslift Algarve | D17: Elite MF | E17: 0 | F17: 0 | G17: =E17+F17 -> 0 | H17: 16 | I17: 0 | J17: 0 | K17: 0 | L17: 16
C18: NORTADA - THE ORIGINALS | D18: Elite MF | E18: 0 | F18: 0 | G18: =E18+F18 -> 0 | H18: 16 | I18: 0 | J18: 0 | K18: 0 | L18: 17
C19: Soul Team | D19: Elite MF | E19: 0 | F19: 0 | G19: =E19+F19 -> 0 | H19: 16 | I19: 0 | J19: 0 | K19: 0 | L19: 18
